[Event "Titled Tuesday Blitz March 08 Early 2022"]
[White "Rosenberg, Evan S"]
[Black "Perez Gormaz, Matias"]
[WhiteFideId "2019299"]
[BlackFideId "3406342"]
[WhiteElo "2288"]
[BlackElo "2327"]
[Result "0-1"]
[Round "01"]
[TimeControl "180+1"]
[Date "2022.03.09"]
[WhiteClock "0:00:06"]
[BlackClock "0:00:17"]

1. Nf3 {[%clk 0:03:00]}  d5 {[%clk 0:02:59]} 2. d4 {[%clk 0:03:00]}  e6 {[%clk 0:02:51]} 3. c4 {[%clk 0:02:59]}  a6 {[%clk 0:02:51]} 4. cxd5 {[%clk 0:02:58]}  exd5 {[%clk 0:02:52]} 5. Nc3 {[%clk 0:02:57]}  c6 {[%clk 0:02:52]} 6. Bf4 {[%clk 0:02:57]}  Bd6 {[%clk 0:02:52]} 7. Bxd6 {[%clk 0:02:57]}  Qxd6 {[%clk 0:02:53]} 8. e3 {[%clk 0:02:57]}  Bf5 {[%clk 0:02:52]} 9. Bd3 {[%clk 0:02:55]}  Ne7 {[%clk 0:02:52]} 10. O-O {[%clk 0:02:54]}  O-O {[%clk 0:02:52]} 11. Rc1 {[%clk 0:02:51]}  Nd7 {[%clk 0:02:52]} 12. a3 {[%clk 0:02:51]}  a5 {[%clk 0:02:50]} 13. Nh4 {[%clk 0:02:45]}  Bxd3 {[%clk 0:02:44]} 14. Qxd3 {[%clk 0:02:45]}  g6 {[%clk 0:02:44]} 15. e4 {[%clk 0:02:34]}  dxe4 {[%clk 0:01:55]} 16. Nxe4 {[%clk 0:02:31]}  Qf4 {[%clk 0:01:56]} 17. g3 {[%clk 0:02:26]}  Qh6 {[%clk 0:01:40]} 18. Qf3 {[%clk 0:02:10]}  Nd5 {[%clk 0:01:39]} 19. Rce1 {[%clk 0:01:57]}  Qg7 {[%clk 0:01:37]} 20. Rd1 {[%clk 0:01:53]}  a4 {[%clk 0:01:31]} 21. Rfe1 {[%clk 0:01:52]}  Ra6 {[%clk 0:01:26]} 22. Nd6 {[%clk 0:01:47]}  Rb6 {[%clk 0:01:22]} 23. Re2 {[%clk 0:01:24]}  Rb3 {[%clk 0:01:10]} 24. Rd3 {[%clk 0:01:14]}  Rxd3 {[%clk 0:00:44]} 25. Qxd3 {[%clk 0:01:15]}  b5 {[%clk 0:00:20]} 26. Qd2 {[%clk 0:01:01]}  Qf6 {[%clk 0:00:18]} 27. Ne8 {[%clk 0:00:53]}  Qd8 {[%clk 0:00:13]} 28. Nd6 {[%clk 0:00:47]}  N7b6 {[%clk 0:00:14]} 29. Ne4 {[%clk 0:00:45]}  Kg7 {[%clk 0:00:12]} 30. Nc5 {[%clk 0:00:36]}  Re8 {[%clk 0:00:12]} 31. Qe1 {[%clk 0:00:33]}  Rxe2 {[%clk 0:00:11]} 32. Qxe2 {[%clk 0:00:34]}  Nc4 {[%clk 0:00:10]} 33. Qg4 {[%clk 0:00:31]}  Qf6 {[%clk 0:00:10]} 34. Ne4 {[%clk 0:00:27]}  Qe6 {[%clk 0:00:07]} 35. Qxe6 {[%clk 0:00:25]}  fxe6 {[%clk 0:00:07]} 36. Nc5 {[%clk 0:00:25]}  Kf6 {[%clk 0:00:07]} 37. Nd3 {[%clk 0:00:22]}  Ne7 {[%clk 0:00:06]} 38. g4 {[%clk 0:00:17]}  e5 {[%clk 0:00:06]} 39. dxe5+ {[%clk 0:00:15]}  Nxe5 {[%clk 0:00:07]} 40. Nxe5 {[%clk 0:00:12]}  Kxe5 {[%clk 0:00:07]} 41. Kg2 {[%clk 0:00:11]}  Kf4 {[%clk 0:00:07]} 42. h3 {[%clk 0:00:10]}  Ke4 {[%clk 0:00:06]} 43. Kg3 {[%clk 0:00:09]}  Kd3 {[%clk 0:00:06]} 44. f4 {[%clk 0:00:08]}  Kc2 {[%clk 0:00:07]} 45. f5 {[%clk 0:00:09]}  gxf5 {[%clk 0:00:08]} 46. Nxf5 {[%clk 0:00:09]}  Nd5 {[%clk 0:00:07]} 47. Nd4+ {[%clk 0:00:08]}  Kxb2 {[%clk 0:00:08]} 48. Nxc6 {[%clk 0:00:08]}  Kxa3 {[%clk 0:00:08]} 49. g5 {[%clk 0:00:07]}  b4 {[%clk 0:00:09]} 50. h4 {[%clk 0:00:04]}  b3 {[%clk 0:00:09]} 51. Na5 {[%clk 0:00:03]}  Kb4 {[%clk 0:00:08]} 52. Nc6+ {[%clk 0:00:03]}  Kc3 {[%clk 0:00:09]} 53. Ne5 {[%clk 0:00:03]}  b2 {[%clk 0:00:09]} 54. h5 {[%clk 0:00:04]}  b1=Q {[%clk 0:00:09]} 55. g6 {[%clk 0:00:05]}  hxg6 {[%clk 0:00:09]} 56. hxg6 {[%clk 0:00:05]}  Qg1+ {[%clk 0:00:09]} 57. Kh4 {[%clk 0:00:05]}  Qh2+ {[%clk 0:00:09]} 58. Kg5 {[%clk 0:00:03]}  Qxe5+ {[%clk 0:00:10]} 59. Kh6 {[%clk 0:00:03]}  Qf6 {[%clk 0:00:10]} 60. Kh7 {[%clk 0:00:04]}  Ne7 {[%clk 0:00:10]} 61. g7 {[%clk 0:00:04]}  Qg6+ {[%clk 0:00:10]} 62. Kh8 {[%clk 0:00:05]}  Qe8+ {[%clk 0:00:11]} 63. Kh7 {[%clk 0:00:05]}  Qg8+ {[%clk 0:00:12]} 64. Kh6 {[%clk 0:00:05]}  a3 {[%clk 0:00:12]} 65. Kh5 {[%clk 0:00:05]}  Qxg7 {[%clk 0:00:13]} 66. Kh4 {[%clk 0:00:05]}  Qe5 {[%clk 0:00:14]} 67. Kg4 {[%clk 0:00:05]}  Qf5+ {[%clk 0:00:14]} 68. Kh4 {[%clk 0:00:05]}  Qg6 {[%clk 0:00:15]} 69. Kh3 {[%clk 0:00:05]}  Nf5 {[%clk 0:00:15]} 70. Kh2 {[%clk 0:00:05]}  a2 {[%clk 0:00:16]} 71. Kh1 {[%clk 0:00:06]}  Qg7 {[%clk 0:00:16]} 72. Kh2 {[%clk 0:00:06]}  a1=Q {[%clk 0:00:17]} 73. Kh3 {[%clk 0:00:06]}  Qh1# {[%clk 0:00:17]} 0-1


[Site "https://www.chess.com"]

[Event "Titled Tuesday Blitz March 08 Early 2022"]
[White "Rychagov, Andrey"]
[Black "Heinemann, Josefine"]
[WhiteFideId "4119932"]
[BlackFideId "12900460"]
[WhiteElo "2500"]
[BlackElo "2300"]
[Result "1-0"]
[Round "01"]
[TimeControl "180+1"]
[Date "2022.03.09"]
[WhiteClock "0:00:20"]
[BlackClock "0:00:16"]

1. d4 {[%clk 0:02:58]}  Nf6 {[%clk 0:02:58]} 2. c4 {[%clk 0:02:57]}  g6 {[%clk 0:02:56]} 3. Nc3 {[%clk 0:02:57]}  d5 {[%clk 0:02:55]} 4. Nf3 {[%clk 0:02:57]}  Bg7 {[%clk 0:02:55]} 5. cxd5 {[%clk 0:02:57]}  Nxd5 {[%clk 0:02:56]} 6. Bg5 {[%clk 0:02:57]}  Nxc3 {[%clk 0:02:48]} 7. bxc3 {[%clk 0:02:56]}  c5 {[%clk 0:02:49]} 8. e3 {[%clk 0:02:56]}  O-O {[%clk 0:02:46]} 9. Be2 {[%clk 0:02:54]}  b6 {[%clk 0:02:43]} 10. O-O {[%clk 0:02:51]}  Bb7 {[%clk 0:02:43]} 11. dxc5 {[%clk 0:02:51]}  Qc7 {[%clk 0:02:42]} 12. cxb6 {[%clk 0:02:44]}  axb6 {[%clk 0:02:43]} 13. Nd4 {[%clk 0:02:42]}  Re8 {[%clk 0:02:07]} 14. Bf3 {[%clk 0:02:32]}  Bxf3 {[%clk 0:02:03]} 15. Qxf3 {[%clk 0:02:31]}  Na6 {[%clk 0:02:04]} 16. Rfc1 {[%clk 0:02:08]}  Nc5 {[%clk 0:02:02]} 17. h3 {[%clk 0:01:53]}  e5 {[%clk 0:01:52]} 18. Qc6 {[%clk 0:01:39]}  Qxc6 {[%clk 0:01:40]} 19. Nxc6 {[%clk 0:01:39]}  f6 {[%clk 0:01:40]} 20. Bh4 {[%clk 0:01:38]}  g5 {[%clk 0:01:38]} 21. Bg3 {[%clk 0:01:38]}  Ra3 {[%clk 0:01:34]} 22. Rcb1 {[%clk 0:01:21]}  Na4 {[%clk 0:00:58]} 23. c4 {[%clk 0:01:10]}  Rc3 {[%clk 0:00:45]} 24. Rb4 {[%clk 0:01:03]}  Ra8 {[%clk 0:00:42]} 25. Ne7+ {[%clk 0:01:03]}  Kf7 {[%clk 0:00:40]} 26. Nd5 {[%clk 0:01:03]}  Rc2 {[%clk 0:00:38]} 27. Nxb6 {[%clk 0:00:50]}  Nxb6 {[%clk 0:00:38]} 28. Rxb6 {[%clk 0:00:50]}  Raxa2 {[%clk 0:00:36]} 29. Rb7+ {[%clk 0:00:49]}  Kg6 {[%clk 0:00:36]} 30. Rxa2 {[%clk 0:00:49]}  Rxa2 {[%clk 0:00:36]} 31. f4 {[%clk 0:00:48]}  exf4 {[%clk 0:00:34]} 32. exf4 {[%clk 0:00:49]}  gxf4 {[%clk 0:00:35]} 33. Bxf4 {[%clk 0:00:48]}  Rc2 {[%clk 0:00:35]} 34. Rc7 {[%clk 0:00:47]}  Bf8 {[%clk 0:00:35]} 35. Be3 {[%clk 0:00:43]}  h5 {[%clk 0:00:35]} 36. c5 {[%clk 0:00:41]}  Kf5 {[%clk 0:00:35]} 37. Rc6 {[%clk 0:00:37]}  Be7 {[%clk 0:00:34]} 38. Bf2 {[%clk 0:00:36]}  Rc1+ {[%clk 0:00:32]} 39. Kh2 {[%clk 0:00:36]}  Rc2 {[%clk 0:00:33]} 40. Bg1 {[%clk 0:00:34]}  Ke5 {[%clk 0:00:30]} 41. Rc7 {[%clk 0:00:33]}  Bf8 {[%clk 0:00:28]} 42. Rh7 {[%clk 0:00:31]}  Bxc5 {[%clk 0:00:23]} 43. Bxc5 {[%clk 0:00:30]}  Rxc5 {[%clk 0:00:23]} 44. Rxh5+ {[%clk 0:00:31]}  f5 {[%clk 0:00:23]} 45. g4 {[%clk 0:00:32]}  Rc2+ {[%clk 0:00:23]} 46. Kg3 {[%clk 0:00:32]}  Rc3+ {[%clk 0:00:24]} 47. Kh4 {[%clk 0:00:32]}  Kf6 {[%clk 0:00:22]} 48. Rxf5+ {[%clk 0:00:32]}  Kg6 {[%clk 0:00:23]} 49. Ra5 {[%clk 0:00:32]}  Rc6 {[%clk 0:00:23]} 50. Rd5 {[%clk 0:00:31]}  Ra6 {[%clk 0:00:22]} 51. Re5 {[%clk 0:00:31]}  Rb6 {[%clk 0:00:22]} 52. Kg3 {[%clk 0:00:32]}  Rb3+ {[%clk 0:00:22]} 53. Kh4 {[%clk 0:00:32]}  Rb6 {[%clk 0:00:22]} 54. Re3 {[%clk 0:00:30]}  Ra6 {[%clk 0:00:21]} 55. Kg3 {[%clk 0:00:31]}  Rb6 {[%clk 0:00:22]} 56. h4 {[%clk 0:00:31]}  Ra6 {[%clk 0:00:22]} 57. h5+ {[%clk 0:00:31]}  Kh6 {[%clk 0:00:20]} 58. Kh4 {[%clk 0:00:31]}  Rb6 {[%clk 0:00:20]} 59. Re7 {[%clk 0:00:31]}  Rb4 {[%clk 0:00:19]} 60. Re6+ {[%clk 0:00:31]}  Kg7 {[%clk 0:00:19]} 61. h6+ {[%clk 0:00:30]}  Kh7 {[%clk 0:00:19]} 62. Kh5 {[%clk 0:00:30]}  Rb5+ {[%clk 0:00:19]} 63. g5 {[%clk 0:00:30]}  Ra5 {[%clk 0:00:18]} 64. Re7+ {[%clk 0:00:30]}  Kg8 {[%clk 0:00:18]} 65. Kg6 {[%clk 0:00:27]}  Ra6+ {[%clk 0:00:17]} 66. Kf5 {[%clk 0:00:27]}  Ra5+ {[%clk 0:00:17]} 67. Kf6 {[%clk 0:00:27]}  Ra6+ {[%clk 0:00:17]} 68. Re6 {[%clk 0:00:28]}  Ra8 {[%clk 0:00:18]} 69. g6 {[%clk 0:00:27]}  Rf8+ {[%clk 0:00:18]} 70. Kg5 {[%clk 0:00:26]}  Ra8 {[%clk 0:00:18]} 71. Rd6 {[%clk 0:00:22]}  Ra5+ {[%clk 0:00:16]} 72. Kf6 {[%clk 0:00:22]}  Ra8 {[%clk 0:00:17]} 73. Ke7 {[%clk 0:00:20]}  Ra7+ {[%clk 0:00:16]} 74. Rd7 {[%clk 0:00:20]} 1-0


[Site "https://www.chess.com"]

[Event "Titled Tuesday Blitz March 08 Early 2022"]
[White "Sadhwani, Raunak"]
[Black "Romanchuk, Viktor"]
[WhiteFideId "35093487"]
[BlackFideId "14109271"]
[WhiteElo "2616"]
[BlackElo "2242"]
[Result "1-0"]
[Round "01"]
[TimeControl "180+1"]
[Date "2022.03.08"]
[WhiteClock "0:01:10"]
[BlackClock "0:00:23"]

1. d4 {[%clk 0:03:00]}  d5 {[%clk 0:02:59]} 2. Nf3 {[%clk 0:03:00]}  Nf6 {[%clk 0:02:58]} 3. Bf4 {[%clk 0:02:59]}  c5 {[%clk 0:02:58]} 4. e3 {[%clk 0:02:58]}  Nc6 {[%clk 0:02:59]} 5. Nbd2 {[%clk 0:02:56]}  Qb6 {[%clk 0:02:59]} 6. dxc5 {[%clk 0:02:52]}  Qxb2 {[%clk 0:02:59]} 7. Rb1 {[%clk 0:02:52]}  Qc3 {[%clk 0:02:59]} 8. Bb5 {[%clk 0:02:52]}  e6 {[%clk 0:02:57]} 9. O-O {[%clk 0:02:52]}  Bxc5 {[%clk 0:02:56]} 10. Nb3 {[%clk 0:02:32]}  Nd7 {[%clk 0:02:32]} 11. Nxc5 {[%clk 0:02:24]}  Qxc5 {[%clk 0:02:27]} 12. c4 {[%clk 0:02:25]}  O-O {[%clk 0:02:24]} 13. cxd5 {[%clk 0:02:24]}  Qxd5 {[%clk 0:02:24]} 14. Qe2 {[%clk 0:02:22]}  Nf6 {[%clk 0:02:07]} 15. Rfd1 {[%clk 0:02:22]}  Qh5 {[%clk 0:02:03]} 16. h3 {[%clk 0:02:17]}  a6 {[%clk 0:02:01]} 17. Bxc6 {[%clk 0:02:02]}  bxc6 {[%clk 0:01:59]} 18. Rbc1 {[%clk 0:02:01]}  c5 {[%clk 0:01:33]} 19. Bd6 {[%clk 0:01:40]}  Re8 {[%clk 0:01:24]} 20. Rxc5 {[%clk 0:01:40]}  Qg6 {[%clk 0:01:23]} 21. Rg5 {[%clk 0:01:40]}  Qe4 {[%clk 0:01:20]} 22. Be5 {[%clk 0:01:40]}  h6 {[%clk 0:01:16]} 23. Rg3 {[%clk 0:01:36]}  Qf5 {[%clk 0:00:58]} 24. e4 {[%clk 0:01:31]}  Qxe4 {[%clk 0:00:49]} 25. Rxg7+ {[%clk 0:01:31]}  Kf8 {[%clk 0:00:45]} 26. Bxf6 {[%clk 0:01:11]}  Qxe2 {[%clk 0:00:36]} 27. Rh7 {[%clk 0:01:11]}  Qxd1+ {[%clk 0:00:35]} 28. Kh2 {[%clk 0:01:11]}  Qd6+ {[%clk 0:00:29]} 29. g3 {[%clk 0:01:11]}  Qxg3+ {[%clk 0:00:23]} 30. Kxg3 {[%clk 0:01:10]} 1-0


[Site "https://www.chess.com"]

[Event "Titled Tuesday Blitz March 08 Early 2022"]
[White "Sahin, Handenur"]
[Black "Msellek, Ilyass"]
[WhiteFideId "6334865"]
[BlackFideId "675938"]
[WhiteElo "2171"]
[BlackElo "2219"]
[Result "0-1"]
[Round "01"]
[TimeControl "180+1"]
[Date "2022.03.09"]
[WhiteClock "0:00:16"]
[BlackClock "0:00:13"]

1. e4 {[%clk 0:02:58]}  e5 {[%clk 0:02:44]} 2. Nf3 {[%clk 0:02:57]}  Nc6 {[%clk 0:02:44]} 3. Bb5 {[%clk 0:02:56]}  a6 {[%clk 0:02:45]} 4. Ba4 {[%clk 0:02:56]}  f5 {[%clk 0:02:45]} 5. d3 {[%clk 0:02:54]}  Nf6 {[%clk 0:02:38]} 6. Nc3 {[%clk 0:02:54]}  b5 {[%clk 0:02:31]} 7. Bb3 {[%clk 0:02:53]}  fxe4 {[%clk 0:02:06]} 8. dxe4 {[%clk 0:02:51]}  Bc5 {[%clk 0:02:00]} 9. Bg5 {[%clk 0:02:42]}  d6 {[%clk 0:01:54]} 10. Nd5 {[%clk 0:02:39]}  Bg4 {[%clk 0:01:52]} 11. Nxf6+ {[%clk 0:02:35]}  gxf6 {[%clk 0:01:50]} 12. Qd5 {[%clk 0:02:34]}  Kd7 {[%clk 0:01:43]} 13. Qf7+ {[%clk 0:02:06]}  Qe7 {[%clk 0:01:43]} 14. Qxf6 {[%clk 0:01:52]}  Qxf6 {[%clk 0:01:42]} 15. Bxf6 {[%clk 0:01:52]}  Rhf8 {[%clk 0:01:43]} 16. Bg7 {[%clk 0:01:50]}  Bxf3 {[%clk 0:01:20]} 17. Bxf8 {[%clk 0:01:48]}  Bxg2 {[%clk 0:01:19]} 18. Rg1 {[%clk 0:01:48]}  Bxe4 {[%clk 0:01:18]} 19. Rg7+ {[%clk 0:01:36]}  Kc8 {[%clk 0:01:15]} 20. O-O-O {[%clk 0:01:26]}  Nd4 {[%clk 0:00:54]} 21. Be7 {[%clk 0:01:07]}  Kb7 {[%clk 0:00:47]} 22. c3 {[%clk 0:01:02]}  Ne2+ {[%clk 0:00:47]} 23. Kd2 {[%clk 0:01:01]}  Nf4 {[%clk 0:00:48]} 24. Bg5 {[%clk 0:00:35]}  Nh5 {[%clk 0:00:44]} 25. Rf7 {[%clk 0:00:30]}  Rg8 {[%clk 0:00:31]} 26. Rxc7+ {[%clk 0:00:25]}  Kxc7 {[%clk 0:00:29]} 27. Bxg8 {[%clk 0:00:26]}  Bxf2 {[%clk 0:00:28]} 28. Ke2 {[%clk 0:00:25]}  Bc5 {[%clk 0:00:26]} 29. Be3 {[%clk 0:00:24]}  Nf4+ {[%clk 0:00:25]} 30. Bxf4 {[%clk 0:00:21]}  exf4 {[%clk 0:00:25]} 31. Bd5 {[%clk 0:00:20]}  Bf5 {[%clk 0:00:21]} 32. Kf3 {[%clk 0:00:19]}  Be3 {[%clk 0:00:22]} 33. Be4 {[%clk 0:00:18]}  Be6 {[%clk 0:00:20]} 34. Bxh7 {[%clk 0:00:18]}  Bxa2 {[%clk 0:00:20]} 35. Be4 {[%clk 0:00:17]}  Bf7 {[%clk 0:00:21]} 36. Re1 {[%clk 0:00:17]}  Bh5+ {[%clk 0:00:20]} 37. Kg2 {[%clk 0:00:17]}  a5 {[%clk 0:00:21]} 38. Bf3 {[%clk 0:00:17]}  Bg6 {[%clk 0:00:21]} 39. Bg4 {[%clk 0:00:17]}  b4 {[%clk 0:00:22]} 40. h4 {[%clk 0:00:17]}  bxc3 {[%clk 0:00:22]} 41. bxc3 {[%clk 0:00:17]}  a4 {[%clk 0:00:22]} 42. h5 {[%clk 0:00:18]}  Be4+ {[%clk 0:00:23]} 43. Kh3 {[%clk 0:00:17]}  a3 {[%clk 0:00:22]} 44. h6 {[%clk 0:00:17]}  a2 {[%clk 0:00:22]} 45. Ra1 {[%clk 0:00:18]}  Bb1 {[%clk 0:00:21]} 46. Bh5 {[%clk 0:00:17]}  Bd2 {[%clk 0:00:16]} 47. Kg4 {[%clk 0:00:17]}  Bxc3 {[%clk 0:00:16]} 48. Bg6 {[%clk 0:00:16]}  Bxa1 {[%clk 0:00:12]} 49. h7 {[%clk 0:00:16]}  Bxg6 {[%clk 0:00:12]} 50. Kxf4 {[%clk 0:00:15]}  Bh8 {[%clk 0:00:11]} 51. Ke3 {[%clk 0:00:16]}  Bb1 {[%clk 0:00:12]} 52. Kd2 {[%clk 0:00:15]}  a1=Q {[%clk 0:00:13]} 53. Kc1 {[%clk 0:00:15]}  Qb2+ {[%clk 0:00:13]} 54. Kd1 {[%clk 0:00:15]}  Qc2+ {[%clk 0:00:14]} 55. Ke1 {[%clk 0:00:15]}  Bc3+ {[%clk 0:00:14]} 56. Kf1 {[%clk 0:00:16]}  Qf5+ {[%clk 0:00:14]} 57. Kg1 {[%clk 0:00:16]}  Qxh7 {[%clk 0:00:13]} 58. Kg2 {[%clk 0:00:16]}  Be4+ {[%clk 0:00:13]} 59. Kf2 {[%clk 0:00:16]}  Bd4+ {[%clk 0:00:12]} 60. Ke2 {[%clk 0:00:16]}  Qh2+ {[%clk 0:00:13]} 61. Ke1 {[%clk 0:00:17]}  Bd3 {[%clk 0:00:13]} 62. Kd1 {[%clk 0:00:17]}  Be3 {[%clk 0:00:12]} 63. Ke1 {[%clk 0:00:16]}  d5 {[%clk 0:00:13]} 64. Kd1 {[%clk 0:00:16]}  d4 {[%clk 0:00:13]} 0-1


[Site "https://www.chess.com"]

[Event "Titled Tuesday Blitz March 08 Early 2022"]
[White "Samant Aditya S"]
[Black "Bures, Vit"]
[WhiteFideId "35080580"]
[BlackFideId "309052"]
[WhiteElo "1916"]
[BlackElo "2118"]
[Result "1-0"]
[Round "01"]
[TimeControl "180+1"]
[Date "2022.03.09"]
[WhiteClock "0:01:15"]
[BlackClock "0:01:43"]

1. d4 {[%clk 0:03:00]}  d5 {[%clk 0:02:59]} 2. c4 {[%clk 0:03:01]}  c6 {[%clk 0:03:00]} 3. Nf3 {[%clk 0:03:01]}  Nf6 {[%clk 0:02:59]} 4. Nc3 {[%clk 0:03:01]}  e6 {[%clk 0:02:59]} 5. e3 {[%clk 0:02:54]}  Nbd7 {[%clk 0:02:59]} 6. Bd3 {[%clk 0:02:55]}  dxc4 {[%clk 0:02:59]} 7. Bxc4 {[%clk 0:02:54]}  b5 {[%clk 0:03:00]} 8. Bd3 {[%clk 0:02:55]}  Bd6 {[%clk 0:03:00]} 9. O-O {[%clk 0:02:54]}  O-O {[%clk 0:03:00]} 10. a4 {[%clk 0:02:49]}  b4 {[%clk 0:02:54]} 11. Ne4 {[%clk 0:02:49]}  Be7 {[%clk 0:02:49]} 12. Qc2 {[%clk 0:02:48]}  Bb7 {[%clk 0:02:47]} 13. Bd2 {[%clk 0:02:19]}  c5 {[%clk 0:02:36]} 14. Nxc5 {[%clk 0:01:57]}  Nxc5 {[%clk 0:02:32]} 15. dxc5 {[%clk 0:01:58]}  Bxf3 {[%clk 0:02:27]} 16. gxf3 {[%clk 0:01:58]}  Rc8 {[%clk 0:02:19]} 17. Bxb4 {[%clk 0:01:46]}  Nd5 {[%clk 0:02:11]} 18. Ba3 {[%clk 0:01:44]}  a5 {[%clk 0:02:07]} 19. Bxh7+ {[%clk 0:01:44]}  Kh8 {[%clk 0:02:05]} 20. Be4 {[%clk 0:01:44]}  Nb4 {[%clk 0:02:02]} 21. Bxb4 {[%clk 0:01:43]}  axb4 {[%clk 0:02:03]} 22. c6 {[%clk 0:01:37]}  f5 {[%clk 0:02:01]} 23. Bd3 {[%clk 0:01:37]}  Qb6 {[%clk 0:01:58]} 24. Bb5 {[%clk 0:01:32]}  f4 {[%clk 0:01:47]} 25. Qe4 {[%clk 0:01:28]}  fxe3 {[%clk 0:01:45]} 26. fxe3 {[%clk 0:01:29]}  Qc5 {[%clk 0:01:45]} 27. f4 {[%clk 0:01:21]}  Bf6 {[%clk 0:01:44]} 28. Rac1 {[%clk 0:01:21]}  Qh5 {[%clk 0:01:43]} 29. Rc2 {[%clk 0:01:15]} 1-0


[Site "https://www.chess.com"]

[Event "Titled Tuesday Blitz March 08 Early 2022"]
[White "Seemann, Jakub"]
[Black "Levin, Anthony"]
[WhiteFideId "21874697"]
[BlackFideId "30940680"]
[WhiteElo "2003"]
[BlackElo "1864"]
[Result "1-0"]
[Round "01"]
[TimeControl "180+1"]
[Date "2022.03.09"]
[WhiteClock "0:02:31"]
[BlackClock "0:02:16"]

1. Nf3 {[%clk 0:02:58]}  d5 {[%clk 0:02:48]} 2. g3 {[%clk 0:02:54]}  Bf5 {[%clk 0:02:43]} 3. b3 {[%clk 0:02:55]}  Nf6 {[%clk 0:02:44]} 4. Bb2 {[%clk 0:02:55]}  e6 {[%clk 0:02:44]} 5. Bg2 {[%clk 0:02:55]}  Be7 {[%clk 0:02:45]} 6. O-O {[%clk 0:02:56]}  O-O {[%clk 0:02:44]} 7. d3 {[%clk 0:02:57]}  h6 {[%clk 0:02:44]} 8. Nbd2 {[%clk 0:02:57]}  Nbd7 {[%clk 0:02:43]} 9. Re1 {[%clk 0:02:57]}  c6 {[%clk 0:02:43]} 10. e4 {[%clk 0:02:58]}  dxe4 {[%clk 0:02:42]} 11. dxe4 {[%clk 0:02:59]}  Bh7 {[%clk 0:02:42]} 12. Qe2 {[%clk 0:02:59]}  Nc5 {[%clk 0:02:36]} 13. Rad1 {[%clk 0:02:58]}  Qa5 {[%clk 0:02:35]} 14. Nc4 {[%clk 0:02:47]}  Qc7 {[%clk 0:02:32]} 15. Be5 {[%clk 0:02:35]}  Qc8 {[%clk 0:02:30]} 16. Nd6 {[%clk 0:02:35]}  Qb8 {[%clk 0:02:24]} 17. Nf5 {[%clk 0:02:29]}  Qe8 {[%clk 0:02:22]} 18. Nxe7+ {[%clk 0:02:27]}  Qxe7 {[%clk 0:02:22]} 19. Bd6 {[%clk 0:02:28]}  Qxd6 {[%clk 0:02:21]} 20. Rxd6 {[%clk 0:02:27]}  Rfd8 {[%clk 0:02:19]} 21. Rxd8+ {[%clk 0:02:27]}  Ne8 {[%clk 0:02:19]} 22. Red1 {[%clk 0:02:28]}  Rb8 {[%clk 0:02:18]} 23. Rxb8 {[%clk 0:02:28]}  Nd7 {[%clk 0:02:19]} 24. Rxe8+ {[%clk 0:02:29]}  Nf8 {[%clk 0:02:16]} 25. Rdd8 {[%clk 0:02:30]}  Bg6 {[%clk 0:02:16]} 26. Rxf8+ {[%clk 0:02:30]}  Kh7 {[%clk 0:02:16]} 27. Rh8# {[%clk 0:02:31]} 1-0


[Site "https://www.chess.com"]

[Event "Titled Tuesday Blitz March 08 Early 2022"]
[White "Shukhman, Anna"]
[Black "Donchenko, Alexander"]
[WhiteFideId "54180058"]
[BlackFideId "24603295"]
[WhiteElo "1665"]
[BlackElo "2539"]
[Result "1/2-1/2"]
[Round "01"]
[TimeControl "180+1"]
[Date "2022.03.09"]
[WhiteClock "0:00:16"]
[BlackClock "0:00:23"]

1. e4 {[%clk 0:03:00]}  e5 {[%clk 0:02:59]} 2. Nf3 {[%clk 0:03:00]}  Nc6 {[%clk 0:02:59]} 3. Bb5 {[%clk 0:02:58]}  a6 {[%clk 0:02:59]} 4. Ba4 {[%clk 0:02:58]}  Nf6 {[%clk 0:02:59]} 5. O-O {[%clk 0:02:57]}  b5 {[%clk 0:03:00]} 6. Bb3 {[%clk 0:02:57]}  Bc5 {[%clk 0:03:00]} 7. c3 {[%clk 0:02:52]}  d6 {[%clk 0:03:00]} 8. d4 {[%clk 0:02:51]}  Bb6 {[%clk 0:02:59]} 9. h3 {[%clk 0:02:47]}  O-O {[%clk 0:02:54]} 10. Re1 {[%clk 0:02:47]}  h6 {[%clk 0:02:50]} 11. a4 {[%clk 0:02:44]}  Bb7 {[%clk 0:02:47]} 12. Bc2 {[%clk 0:02:02]}  Re8 {[%clk 0:02:42]} 13. axb5 {[%clk 0:01:47]}  axb5 {[%clk 0:02:42]} 14. Rxa8 {[%clk 0:01:47]}  Qxa8 {[%clk 0:02:39]} 15. Na3 {[%clk 0:01:47]}  exd4 {[%clk 0:02:27]} 16. Nxb5 {[%clk 0:01:44]}  dxc3 {[%clk 0:02:23]} 17. Nxc3 {[%clk 0:01:44]}  Nb4 {[%clk 0:02:17]} 18. Be3 {[%clk 0:01:30]}  Nxc2 {[%clk 0:02:09]} 19. Qxc2 {[%clk 0:01:29]}  Nxe4 {[%clk 0:01:55]} 20. Bxb6 {[%clk 0:01:28]}  cxb6 {[%clk 0:01:55]} 21. Nd4 {[%clk 0:01:24]}  Nxc3 {[%clk 0:01:49]} 22. Rxe8+ {[%clk 0:01:22]}  Qxe8 {[%clk 0:01:50]} 23. Qxc3 {[%clk 0:01:22]}  Qe4 {[%clk 0:01:44]} 24. f3 {[%clk 0:01:21]}  Qe5 {[%clk 0:01:43]} 25. Kf2 {[%clk 0:01:17]}  g5 {[%clk 0:01:16]} 26. Ne2 {[%clk 0:00:55]}  Kg7 {[%clk 0:01:13]} 27. Qxe5+ {[%clk 0:00:54]}  dxe5 {[%clk 0:01:14]} 28. Ke3 {[%clk 0:00:54]}  f5 {[%clk 0:01:11]} 29. Nc3 {[%clk 0:00:52]}  Bc6 {[%clk 0:01:08]} 30. g3 {[%clk 0:00:38]}  f4+ {[%clk 0:01:04]} 31. gxf4 {[%clk 0:00:38]}  gxf4+ {[%clk 0:01:00]} 32. Ke2 {[%clk 0:00:31]}  Kf6 {[%clk 0:00:56]} 33. b4 {[%clk 0:00:30]}  Kg5 {[%clk 0:00:52]} 34. Kf2 {[%clk 0:00:30]}  b5 {[%clk 0:00:46]} 35. Kg2 {[%clk 0:00:29]}  Kh4 {[%clk 0:00:45]} 36. Ne2 {[%clk 0:00:18]}  Kg5 {[%clk 0:00:37]} 37. Nc3 {[%clk 0:00:18]}  Kf5 {[%clk 0:00:38]} 38. Kf2 {[%clk 0:00:18]}  Ke6 {[%clk 0:00:34]} 39. Ke2 {[%clk 0:00:17]}  Ke7 {[%clk 0:00:33]} 40. Kf2 {[%clk 0:00:16]}  Kf6 {[%clk 0:00:32]} 41. Ke2 {[%clk 0:00:16]}  Kf5 {[%clk 0:00:28]} 42. Kf2 {[%clk 0:00:16]}  Kg5 {[%clk 0:00:23]} 43. Kg2 {[%clk 0:00:16]} 1/2-1/2


[Site "https://www.chess.com"]